[Event "17th Memorial Lezcano Montalvo 2025"]
[Site "Gran Canaria"]
[Date "2025.04.18"]
[Round "7.39"]
[White "Julien Casteleiro, Ariel"]
[Black "Cruz Ramirez, Nauzet"]
[Result "0-1"]
[Annotator "NA"]
[ECO "A48"]
[WhiteElo "1761"]
[BlackElo "2076"]
[PlyCount "72"]
[EventDate "2025.04.13"]
[EventType "swiss"]
[EventCountry "ESP"]
[SourceTitle "playchess.com"]
[Source "ChessBase"]
[SourceQuality "1"]
[TimeControl "5400+30"]

1. d4 {[%emt 0:02:07]} Nf6 {[%emt 0:00:27]} 2. Nf3 {[%emt 0:00:34]} g6 {[%emt 0:01:01]} 3. Bf4 {[%emt 0:00:30]} Bg7 {[%emt 0:00:25]} 4. h3 {[%emt 0:00:46]} c5 {[%emt 0:00:37]} 5. e3 {[%emt 0:03:00]} O-O {[%emt 0:02:40]} 6. Be2 {[%emt 0:00:08]} b6 {[%emt 0:00:28]} 7. c4 {[%emt 0:01:19]} cxd4 {[%emt 0:01:14]} 8. exd4 {[%emt 0:00:55]} d5 {[%emt 0:00:11]} 9. Nc3 {[%emt 0:01:17]} Bb7 {[%emt 0:01:59]} 10. O-O {[%emt 0:04:07]} e6 {[%emt 0:04:02]} 11. Re1 {[%emt 0:02:22]} dxc4 {[%emt 0:04:06]} 12. Bxc4 {[%emt 0:01:30]} Nc6 {[%emt 0:01:47]} 13. Rc1 {[%emt 0:03:10]} a6 {[%emt 0:07:07]} 14. a4 {[%emt 0:05:02]} Ne7 {[%emt 0:00:31]} 15. Qe2 {[%emt 0:06:47]} Bxf3 {[%emt 0:09:40]} 16. Qxf3 {[%emt 0:10:44]} Qxd4 {[%emt 0:00:35]} 17. Be5 {[%emt 0:00:44]} Qxc4 {[%emt 0:00:31]} 18. Bxf6 {[%emt 0:01:41]} Bxf6 {[%emt 0:20:21]} 19. Ne4 {[%emt 0:11:20]} Qd4 {[%emt 0:01:05]} 20. Qxf6 {[%emt 0:04:29]} Qxf6 {[%emt 0:00:07]} 21. Nxf6+ {[%emt 0:00:13]} Kg7 {[%emt 0:00:02]} 22. Nd7 {[%emt 0:03:27]} Rfd8 {[%emt 0:00:04]} 23. Nxb6 {[%emt 0:01:32]} Rab8 {[%emt 0:00:07]} 24. a5 {[%emt 0:01:20]} Nd5 {[%emt 0:00:19]} 25. Red1 {[%emt 0:04:42]} Nxb6 {[%emt 0:01:33]} 26. Rxd8 {[%emt 0:00:37]} Rxd8 {[%emt 0:00:07]} 27. axb6 {[%emt 0:00:21]} Rd6 {[%emt 0:00:05]} 28. b7 {[%emt 0:08:00]} Rb6 {[%emt 0:00:07]} 29. Rc6 {[%emt 0:00:58]} Rxb7 {[%emt 0:00:06]} 30. Rxa6 {[%emt 0:00:18]} Rxb2 {[%emt 0:00:06]} 31. Kf1 {[%emt 0:00:39]} g5 {[%emt 0:01:02]} 32. Rd6 {[%emt 0:01:30]} h5 {[%emt 0:00:35]} 33. g3 {[%emt 0:01:34]} Rb4 {[%emt 0:03:17]} 34. Ke2 {[%emt 0:00:27]} h4 {[%emt 0:00:09]} 35. Kf3 {[%emt 0:02:15]} Rb3+ {[%emt 0:01:54]} 36. Kg4 {[%emt 0:02:40]} Kg6 {[%emt 0:00:22]} 0-1

[Event "17th Memorial Lezcano Montalvo 2025"]
[Site "Gran Canaria"]
[Date "2025.04.18"]
[Round "7.40"]
[White "Cappelle, Cedric"]
[Black "Schmitz, Andreas Arnold"]
[Result "1/2-1/2"]
[Annotator "RC"]
[ECO "D25"]
[WhiteElo "1774"]
[BlackElo "1967"]
[PlyCount "103"]
[EventDate "2025.04.13"]
[EventType "swiss"]
[EventCountry "ESP"]
[SourceTitle "playchess.com"]
[Source "ChessBase"]
[SourceQuality "1"]
[TimeControl "5400+30"]

1. d4 {[%emt 0:00:05]} d5 {[%emt 0:00:05]} 2. c4 {[%emt 0:00:07]} dxc4 {[%emt 0:00:06]} 3. Nf3 {[%emt 0:01:02]} Nf6 {[%emt 0:00:08]} 4. e3 {[%emt 0:00:48]} Bg4 {[%emt 0:00:16]} 5. Bxc4 {[%emt 0:00:12]} e6 {[%emt 0:00:08]} 6. Qb3 {[%emt 0:01:20]} Bxf3 {[%emt 0:00:58]} 7. gxf3 {[%emt 0:00:05]} Nbd7 {[%emt 0:00:24]} 8. Nc3 {[%emt 0:00:18]} Nb6 {[%emt 0:02:36]} 9. Be2 {[%emt 0:00:15]} c6 {[%emt 0:03:25]} 10. O-O {[%emt 0:01:54]} Bd6 {[%emt 0:01:41]} 11. f4 {[%emt 0:04:15]} Nfd5 {[%emt 0:02:12]} 12. Ne4 {[%emt 0:03:28]} Bc7 {[%emt 0:05:54]} 13. Bd2 {[%emt 0:09:34]} Qh4 {[%emt 0:13:40]} 14. Ng5 {[%emt 0:03:41]} h6 {[%emt 0:03:13]} 15. Nf3 {[%emt 0:00:08]} Qe7 {[%emt 0:02:11]} 16. a4 {[%emt 0:14:06]} a5 {[%emt 0:02:25]} 17. e4 {[%emt 0:06:13]} Nb4 {[%emt 0:01:55]} 18. Rac1 {[%emt 0:08:49]} O-O-O {[%emt 0:06:16]} 19. Rc5 {[%emt 0:08:41]} Rxd4 {[%emt 0:04:14]} 20. Nxd4 {[%emt 0:06:16]} Qxc5 {[%emt 0:00:10]} 21. Be3 {[%emt 0:00:28]} Qe7 {[%emt 0:01:53]} 22. Rc1 {[%emt 0:02:27]} g5 {[%emt 0:08:34]} 23. f5 {[%emt 0:05:47]} exf5 {[%emt 0:01:42]} 24. Nb5 {[%emt 0:09:20]} fxe4 {[%emt 0:04:55]} 25. Nxc7 {[%emt 0:01:59]} Kxc7 {[%emt 0:01:33]} 26. Bc5 {[%emt 0:04:32]} Qe6 {[%emt 0:01:22]} 27. Qg3+ {[%emt 0:00:18]} Kc8 {[%emt 0:01:34]} 28. Bxb6 {[%emt 0:01:02]} Nd5 {[%emt 0:00:42]} 29. Bxa5 {[%emt 0:02:18]} f5 {[%emt 0:03:30]} 30. Bc4 {[%emt 0:03:06]} f4 {[%emt 0:00:33]} 31. Qb3 {[%emt 0:00:26]} Qg4+ {[%emt 0:08:45]} 32. Kh1 {[%emt 0:00:06]} Nc7 {[%emt 0:00:47]} 33. Bxc7 {[%emt 0:00:49]} Kxc7 {[%emt 0:00:04]} 34. Be6 {[%emt 0:01:42]} Qf3+ {[%emt 0:01:05]} 35. Qxf3 {[%emt 0:00:07]} exf3 {[%emt 0:00:03]} 36. Bg4 {[%emt 0:00:48]} Rd8 {[%emt 0:00:17]} 37. Bxf3 {[%emt 0:00:09]} Rd2 {[%emt 0:00:12]} 38. Kg2 {[%emt 0:01:01]} Rxb2 {[%emt 0:00:06]} 39. Rc4 {[%emt 0:00:11]} Rd2 {[%emt 0:01:30]} 40. a5 {[%emt 0:00:34]} Ra2 {[%emt 0:01:01]} 41. Rc5 {[%emt 0:00:09]} Kb8 {[%emt 0:00:54]} 42. Re5 {[%emt 0:00:59]} Ka7 {[%emt 0:00:32]} 43. Re6 {[%emt 0:01:12]} Rxa5 {[%emt 0:00:45]} 44. Bxc6 {[%emt 0:00:51]} bxc6 {[%emt 0:00:06]} 45. Rxc6 {[%emt 0:00:11]} h5 {[%emt 0:01:05]} 46. Rh6 {[%emt 0:00:32]} g4 {[%emt 0:00:15]} 47. Rf6 {[%emt 0:00:11]} f3+ {[%emt 0:03:42]} 48. Kg3 {[%emt 0:00:34]} Ra1 {[%emt 0:00:09]} 49. Kh4 {[%emt 0:00:39]} Rh1 {[%emt 0:00:22]} 50. Kxh5 {[%emt 0:00:11]} Rxh2+ {[%emt 0:00:36]} 51. Kxg4 {[%emt 0:00:07]} Rxf2 {[%emt 0:00:10]} 52. Rxf3 {[%emt 0:00:14]} 1/2-1/2

[Event "17th Memorial Lezcano Montalvo 2025"]
[Site "Gran Canaria"]
[Date "2025.04.18"]
[Round "7.41"]
[White "Matos Espino, Carlos Silverio"]
[Black "Rivero Tacoronte, Gabriel"]
[Result "1-0"]
[Annotator "NA"]
[ECO "A02"]
[WhiteElo "1731"]
[BlackElo "1963"]
[PlyCount "58"]
[EventDate "2025.04.13"]
[EventType "swiss"]
[EventCountry "ESP"]
[SourceTitle "playchess.com"]
[Source "ChessBase"]
[SourceQuality "1"]
[TimeControl "5400+30"]

1. f4 {[%emt 0:03:20]} e5 {[%emt 0:06:05]} 2. fxe5 {[%emt 0:00:08]} d6 {[%emt 0:00:02]} 3. Nf3 {[%emt 0:00:09]} dxe5 {[%emt 0:00:51]} 4. Nxe5 {[%emt 1:28:53]} Bd6 {[%emt 1:25:32]} 5. Nf3 {[%emt 0:00:00]} Nh6 {[%emt 0:00:00]} 6. d3 {[%emt 0:00:00]} Ng4 {[%emt 0:00:00]} 7. g3 {[%emt 0:01:30]} h5 {[%emt 0:00:00]} 8. Bg2 {[%emt 0:00:00]} h4 {[%emt 0:00:00]} 9. gxh4 {[%emt 0:00:00]} Nxh2 {[%emt 0:00:00]} 10. Bg5 {[%emt 0:00:00]} Nxf3+ {[%emt 0:00:00]} 11. Bxf3 {[%emt 0:00:00]} Bg3+ {[%emt 0:00:00]} 12. Kd2 {[%emt 0:00:00]} f6 {[%emt 0:00:00]} 13. Qg1 {[%emt 0:00:00]} Be5 {[%emt 0:00:00]} 14. Be3 {[%emt 0:00:00]} Qe7 {[%emt 0:00:00]} 15. Nc3 {[%emt 0:00:00]} c6 {[%emt 0:00:00]} 16. Bc5 {[%emt 0:00:00]} Bf4+ {[%emt 0:00:00]} 17. Kd1 {[%emt 0:00:00]} Qf7 {[%emt 0:00:00]} 18. Qd4 {[%emt 0:00:00]} Be5 {[%emt 0:00:00]} 19. Qe3 {[%emt 0:00:00]} Na6 {[%emt 0:00:00]} 20. Ne4 {[%emt 0:00:00]} Nxc5 {[%emt 0:00:00]} 21. Nd6+ {[%emt 0:00:00]} Ke7 {[%emt 0:00:00]} 22. Nxf7 {[%emt 0:00:00]} Kxf7 {[%emt 0:00:00]} 23. Qxc5 {[%emt 0:00:00]} Be6 {[%emt 0:00:00]} 24. Kd2 {[%emt 0:00:00]} Rhd8 {[%emt 0:00:00]} 25. Rhg1 {[%emt 0:00:00]} Rd7 {[%emt 0:00:00]} 26. c3 {[%emt 0:00:00]} Bf4+ {[%emt 0:00:00]} 27. Kc2 {[%emt 0:00:00]} Rh8 {[%emt 0:00:00]} 28. h5 {[%emt 0:00:00]} Re8 {[%emt 0:00:18]} 29. h6 {[%emt 0:00:00]} Bd5 {[%emt 0:00:31]} 1-0

[Event "17th Memorial Lezcano Montalvo 2025"]
[Site "Gran Canaria"]
[Date "2025.04.18"]
[Round "7.42"]
[White "Creo Abeijon, Diego"]
[Black "de Leon Navarro, Claudio"]
[Result "1/2-1/2"]
[Annotator "RC"]
[ECO "C11"]
[WhiteElo "1729"]
[BlackElo "1918"]
[PlyCount "122"]
[EventDate "2025.04.13"]
[EventType "swiss"]
[EventCountry "ESP"]
[SourceTitle "playchess.com"]
[Source "ChessBase"]
[SourceQuality "1"]
[TimeControl "5400+30"]

1. e4 {[%emt 1:31:00]} e6 {[%emt 1:31:00]} 2. d4 {[%emt 0:00:30]} d5 {[%emt 0:00:30]} 3. Nc3 {[%emt 0:00:30]} Nf6 {[%emt 0:00:30]} 4. e5 {[%emt 0:00:30]} Nfd7 {[%emt 0:00:30]} 5. f4 {[%emt 0:00:30]} c5 {[%emt 0:00:30]} 6. Nf3 {[%emt 0:00:30]} Nc6 {[%emt 0:00:30]} 7. Be3 {[%emt 0:00:30]} h6 {[%emt 0:00:30]} 8. Be2 {[%emt 0:00:30]} g5 {[%emt 0:00:30]} 9. g3 {[%emt 0:00:30]} g4 {[%emt 0:00:30]} 10. Nh4 {[%emt 0:00:30]} cxd4 {[%emt 0:00:30]} 11. Bxd4 {[%emt 0:00:30]} Nxd4 {[%emt 0:00:30]} 12. Qxd4 {[%emt 0:00:30]} Bc5 {[%emt 0:00:30]} 13. Qd3 {[%emt 0:00:30]} h5 {[%emt 0:00:30]} 14. O-O-O {[%emt 0:00:30]} a6 {[%emt 0:00:30]} 15. h3 {[%emt 0:00:30]} gxh3 {[%emt 0:00:30]} 16. Rxh3 {[%emt 0:00:30]} Bb4 {[%emt 0:00:30]} 17. Ng2 {[%emt 0:00:30]} h4 {[%emt 0:00:30]} 18. Rxh4 {[%emt 0:00:30]} Rf8 {[%emt 0:00:30]} 19. Rdh1 {[%emt 0:00:30]} Qa5 {[%emt 0:00:30]} 20. Rh8 {[%emt 0:00:30]} Bxc3 {[%emt 0:00:30]} 21. Rxf8+ {[%emt 0:00:30]} Nxf8 {[%emt 0:00:30]} 22. bxc3 {[%emt 0:00:30]} Bd7 {[%emt 0:00:30]} 23. Qd4 {[%emt 0:00:30]} O-O-O {[%emt 0:00:30]} 24. Qb4 {[%emt 0:00:30]} Qxa2 {[%emt 0:00:30]} 25. Rh8 {[%emt 0:00:30]} Qa1+ {[%emt 0:00:30]} 26. Kd2 {[%emt 0:00:30]} d4 {[%emt 0:00:30]} 27. cxd4 {[%emt 0:00:30]} Be8 {[%emt 0:00:30]} 28. Qc3+ {[%emt 0:00:30]} Qxc3+ {[%emt 0:00:30]} 29. Kxc3 Ng6 {[%emt 0:00:30]} 30. Rh2 {[%emt 0:01:00]} b5 {[%emt 0:00:30]} 31. Bf3 {[%emt 0:00:30]} Kc7 {[%emt 0:00:30]} 32. Ne3 {[%emt 0:00:00]} a5 {[%emt 0:00:00]} 33. Rd2 {[%emt 0:00:14]} Kb6 {[%emt 0:00:00]} 34. d5 {[%emt 0:00:31]} Kc5 {[%emt 0:00:00]} 35. d6 {[%emt 0:00:18]} f6 {[%emt 0:00:00]} 36. Ng4 {[%emt 0:00:28]} fxe5 {[%emt 0:00:00]} 37. fxe5 {[%emt 0:00:35]} Bd7 {[%emt 0:00:00]} 38. Be4 {[%emt 0:00:16]} Be8 {[%emt 0:00:00]} 39. Kb2 {[%emt 0:00:40]} b4 {[%emt 0:00:00]} 40. c3 {[%emt 0:01:28]} a4 {[%emt 0:04:30]} 41. cxb4+ {[%emt 0:00:00]} Kxb4 {[%emt 0:00:30]} 42. Rd3 {[%emt 0:01:00]} Nf8 {[%emt 0:00:00]} 43. Ne3 {[%emt 0:00:00]} Nd7 {[%emt 0:00:00]} 44. Nc2+ {[%emt 0:01:00]} Ka5 {[%emt 0:01:30]} 45. Rc3 {[%emt 0:00:00]} Rb8+ {[%emt 0:00:00]} 46. Ka3 {[%emt 0:01:00]} Nxe5 {[%emt 0:01:00]} 47. Nd4 {[%emt 0:00:00]} Nf7 {[%emt 0:00:00]} 48. Nxe6 {[%emt 0:00:11]} Nxd6 {[%emt 0:00:00]} 49. Bd3 {[%emt 0:00:27]} Bf7 {[%emt 0:01:30]} 50. Nd4 {[%emt 0:01:22]} Rc8 {[%emt 0:00:00]} 51. Rxc8 {[%emt 0:00:00]} Nxc8 {[%emt 0:00:00]} 52. Nc6+ {[%emt 0:01:00]} Kb6 {[%emt 0:01:30]} 53. Ne5 {[%emt 0:00:30]} Bb3 {[%emt 0:00:30]} 54. Kb4 {[%emt 0:00:30]} Kc7 {[%emt 0:00:30]} 55. Nc4 {[%emt 0:00:30]} Bxc4 {[%emt 0:00:30]} 56. Bxc4 {[%emt 0:00:30]} Kd6 {[%emt 0:00:30]} 57. Ba2 {[%emt 0:00:30]} Ke5 {[%emt 0:00:30]} 58. g4 {[%emt 0:00:30]} Nd6 {[%emt 0:00:30]} 59. Kxa4 {[%emt 0:00:30]} Kf4 {[%emt 0:00:30]} 60. Be6 {[%emt 0:00:30]} Nc4 {[%emt 0:00:30]} 61. Kb4 {[%emt 0:00:30]} Ne5 {[%emt 0:00:30]} 1/2-1/2

[Event "17th Memorial Lezcano Montalvo 2025"]
[Site "Gran Canaria"]
[Date "2025.04.18"]
[Round "7.43"]
[White "Arlet, Benjamin Andres"]
[Black "Lascar, Radoslawa"]
[Result "1/2-1/2"]
[Annotator "NA RC"]
[ECO "B51"]
[WhiteElo "1721"]
[BlackElo "1897"]
[PlyCount "119"]
[EventDate "2025.04.13"]
[EventType "swiss"]
[EventCountry "ESP"]
[SourceTitle "playchess.com"]
[Source "ChessBase"]
[SourceQuality "1"]
[TimeControl "5400+30"]

1. e4 {[%emt 0:17:17]} c5 {[%emt 0:00:15]} 2. Nf3 {[%emt 0:00:03]} Nc6 {[%emt 0:00:11]} 3. Bb5 {[%emt 0:00:04]} d6 {[%emt 0:00:56]} 4. O-O {[%emt 0:00:26]} Bd7 {[%emt 0:00:48]} 5. c3 {[%emt 0:00:07]} Nf6 {[%emt 0:03:54]} 6. Re1 {[%emt 0:00:26]} Qc7 {[%emt 0:05:22]} 7. d4 {[%emt 0:00:53]} e5 {[%emt 0:06:54]} 8. h3 {[%emt 0:05:27]} Be7 {[%emt 0:02:40]} 9. a4 {[%emt 0:00:07]} O-O {[%emt 0:05:06]} 10. Bg5 {[%emt 0:03:17]} a6 {[%emt 0:01:19]} 11. Bf1 {[%emt 0:00:45]} Rfe8 {[%emt 0:10:13]} 12. d5 {[%emt 0:10:10]} Na7 {[%emt 0:12:05]} 13. a5 {[%emt 0:10:52]} b6 {[%emt 0:15:34]} 14. Bxf6 {[%emt 0:07:42]} Bxf6 {[%emt 0:05:44]} 15. axb6 {[%emt 0:02:10]} Qxb6 {[%emt 0:00:01]} 16. Rxa6 {[%emt 0:00:03]} Qxb2 {[%emt 0:01:31]} 17. Rxd6 {[%emt 0:02:39]} Bb5 {[%emt 0:13:57]} 18. c4 {[%emt 0:04:18]} Nc8 {[%emt 0:02:43]} 19. Re2 {[%emt 0:07:05]} Qb4 {[%emt 0:04:46]} 20. Rxf6 {[%emt 0:00:06]} Ba4 {[%emt 0:00:16]} 21. Qc1 {[%emt 0:00:05]} gxf6 {[%emt 0:00:56]} 22. Rb2 {[%emt 0:00:07]} Qa5 {[%emt 0:00:47]} 23. Ra2 {[%emt 0:03:08]} Qd8 {[%emt 0:02:10]} 24. Qe3 {[%emt 0:04:48]} Qd6 {[%emt 0:01:32]} 25. Nh4 {[%emt 0:00:20]} Ne7 {[%emt 0:00:22]} 26. Nd2 {[%emt 0:03:09]} Bd7 {[%emt 0:01:23]} 27. Rxa8 {[%emt 0:00:28]} Rxa8 {[%emt 0:00:01]} 28. Nb3 {[%emt 0:00:01]} Rc8 {[%emt 0:01:30]} 29. Be2 {[%emt 0:00:13]} Qb6 {[%emt 0:00:34]} 30. Nd2 {[%emt 0:01:51]} Kh8 {[%emt 0:00:42]} 31. Bh5 {[%emt 0:00:14]} Rg8 {[%emt 0:01:09]} 32. Bxf7 {[%emt 0:07:34]} Rg5 {[%emt 0:00:11]} 33. Ndf3 {[%emt 0:00:58]} Rg7 {[%emt 0:00:07]} 34. Bh5 {[%emt 0:00:09]} Bxh3 {[%emt 0:01:10]} 35. Qh6 {[%emt 0:01:08]} Ng8 {[%emt 0:00:29]} 36. Qe3 {[%emt 0:00:33]} Ne7 {[%emt 0:00:13]} 37. Nxe5 {[%emt 0:01:39]} fxe5 {[%emt 0:00:26]} 38. Qxh3 {[%emt 0:00:14]} Qb1+ {[%emt 0:00:42]} 39. Kh2 {[%emt 0:00:01]} Qxe4 {[%emt 0:00:08]} 40. d6 {[%emt 0:00:58]} Qf4+ {[%emt 0:00:33]} 41. g3 {[%emt 0:00:30]} Qxf2+ {[%emt 0:00:38]} 42. Qg2 {[%emt 0:01:40]} Qxg2+ {[%emt 0:00:01]} 43. Kxg2 {[%emt 0:00:01]} Nc6 {[%emt 0:01:11]} 44. Nf5 {[%emt 0:00:16]} Ra7 {[%emt 0:00:42]} 45. Kf3 {[%emt 0:01:14]} Nd4+ {[%emt 0:00:27]} 46. Ke4 {[%emt 0:00:01]} Nxf5 {[%emt 0:00:36]} 47. Kxf5 {[%emt 0:00:02]} e4 {[%emt 0:00:23]} 48. Ke6 {[%emt 0:00:17]} Kg7 {[%emt 0:00:37]} 49. d7 {[%emt 0:00:16]} Ra6+ {[%emt 0:00:29]} 50. Kd5 {[%emt 0:01:17]} Ra8 {[%emt 0:00:15]} 51. Kxc5 {[%emt 0:00:03]} Kf6 {[%emt 0:00:28]} 52. Kd4 {[%emt 0:07:22]} Ke7 {[%emt 0:00:08]} 53. Bg4 {[%emt 0:00:15]} Rg8 {[%emt 0:00:29]} 54. Bf5 {[%emt 0:00:04]} h5 {[%emt 0:00:48]} 55. c5 {[%emt 0:00:22]} Rxg3 {[%emt 0:00:45]} 56. Kxe4 {[%emt 0:00:01]} h4 {[%emt 0:00:35]} 57. c6 {[%emt 0:00:36]} Rc3 {[%emt 0:00:26]} 58. Kd5 {[%emt 0:00:31]} h3 {[%emt 0:01:12]} 59. c7 {[%emt 0:00:35]} Rxc7 {[%emt 0:00:00]} 60. Bxh3 {[%emt 0:00:02]} 1/2-1/2

[Event "17th Memorial Lezcano Montalvo 2025"]
[Site "Gran Canaria"]
[Date "2025.04.18"]
[Round "7.44"]
[White "Garcia Rodriguez, Adriana"]
[Black "Garcia Almeida, Valeria"]
[Result "1-0"]
[Annotator "NA RC"]
[ECO "B22"]
[WhiteElo "1893"]
[BlackElo "1582"]
[PlyCount "83"]
[EventDate "2025.04.13"]
[EventType "swiss"]
[EventCountry "ESP"]
[SourceTitle "playchess.com"]
[Source "ChessBase"]
[SourceQuality "1"]
[TimeControl "5400+30"]

1. e4 {[%emt 0:00:01]} c5 {[%emt 0:06:51]} 2. c3 {[%emt 0:00:14]} Nf6 {[%emt 0:00:34]} 3. e5 {[%emt 0:00:16]} Nd5 {[%emt 0:00:47]} 4. d4 {[%emt 0:00:34]} cxd4 {[%emt 0:02:27]} 5. Nf3 {[%emt 0:00:21]} d6 {[%emt 0:01:29]} 6. cxd4 {[%emt 0:00:46]} Nc6 {[%emt 0:01:09]} 7. Bc4 {[%emt 0:00:30]} dxe5 {[%emt 0:00:56]} 8. dxe5 {[%emt 0:00:16]} e6 {[%emt 0:06:09]} 9. O-O {[%emt 0:02:46]} Be7 {[%emt 0:02:34]} 10. Qe2 {[%emt 0:03:10]} Qc7 {[%emt 0:08:29]} 11. Qe4 {[%emt 0:04:18]} Nb6 {[%emt 0:06:25]} 12. Bb3 {[%emt 0:01:37]} Bd7 {[%emt 0:04:23]} 13. Bd2 {[%emt 0:08:47]} a5 {[%emt 0:07:47]} 14. a3 {[%emt 0:09:44]} a4 {[%emt 0:07:07]} 15. Bc2 {[%emt 0:15:41]} Na5 {[%emt 0:05:34]} 16. Bc3 {[%emt 0:08:20]} Qc4 {[%emt 0:06:39]} 17. Nd4 {[%emt 0:20:39]} Qd5 {[%emt 0:04:02]} 18. Qg4 {[%emt 0:01:38]} O-O {[%emt 0:02:15]} 19. Be4 {[%emt 0:01:16]} Qc4 {[%emt 0:02:32]} 20. Nd2 {[%emt 0:00:18]} Qc7 {[%emt 0:00:17]} 21. Rac1 {[%emt 0:02:16]} Nc6 {[%emt 0:02:33]} 22. Nb5 {[%emt 0:18:02]} Qb8 {[%emt 0:01:09]} 23. Rfe1 {[%emt 0:00:00]} Na5 {[%emt 0:02:58]} 24. Nd4 {[%emt 0:00:00]} Qd8 {[%emt 0:02:32]} 25. Re3 {[%emt 0:00:00]} Re8 {[%emt 0:01:24]} 26. Rg3 {[%emt 0:00:00]} g6 {[%emt 0:01:43]} 27. Bb1 {[%emt 0:00:00]} Nd5 {[%emt 0:03:35]} 28. Ne4 {[%emt 0:00:00]} Nc6 {[%emt 0:01:15]} 29. Nf3 {[%emt 0:00:00]} Bf8 {[%emt 0:00:46]} 30. h4 {[%emt 0:00:00]} Bg7 {[%emt 0:00:23]} 31. Nd6 {[%emt 0:00:00]} h5 {[%emt 0:01:20]} 32. Qe4 {[%emt 0:00:43]} Rf8 {[%emt 0:01:00]} 33. Bd2 {[%emt 0:00:40]} Qb8 {[%emt 0:01:03]} 34. Bh6 {[%emt 0:02:36]} f5 {[%emt 0:03:58]} 35. exf6 {[%emt 0:00:10]} Rxf6 {[%emt 0:00:38]} 36. Rxg6 {[%emt 0:01:00]} Kf8 {[%emt 0:02:51]} 37. Bxg7+ {[%emt 0:01:24]} Ke7 {[%emt 0:00:09]} 38. Bxf6+ {[%emt 0:00:15]} Nxf6 {[%emt 0:00:07]} 39. Rg7+ {[%emt 0:00:38]} Kd8 {[%emt 0:00:37]} 40. Qf4 {[%emt 0:00:22]} Ne8 {[%emt 0:00:32]} 41. Qg5+ {[%emt 0:00:41]} Kc7 {[%emt 0:00:32]} 42. Nb5+ {[%emt 0:00:22]} 1-0

[Event "17th Memorial Lezcano Montalvo 2025"]
[Site "Gran Canaria"]
[Date "2025.04.18"]
[Round "7.45"]
[White "Leandro Tejera, Damian"]
[Black "Alonso Perez, Alfredo"]
[Result "0-1"]
[Annotator "NA"]
[ECO "D05"]
[WhiteElo "1546"]
[BlackElo "1853"]
[PlyCount "80"]
[EventDate "2025.04.13"]
[EventType "swiss"]
[EventCountry "ESP"]
[SourceTitle "playchess.com"]
[Source "ChessBase"]
[SourceQuality "1"]
[TimeControl "5400+30"]

1. d4 {[%emt 0:02:41]} d5 {[%emt 0:00:37]} 2. Nf3 {[%emt 0:00:06]} Nf6 {[%emt 0:00:00]} 3. e3 {[%emt 0:00:07]} c5 {[%emt 0:00:23]} 4. b3 {[%emt 0:00:36]} e6 {[%emt 0:02:25]} 5. Bd3 {[%emt 0:00:35]} Be7 {[%emt 0:00:07]} 6. Bb2 {[%emt 0:00:15]} O-O {[%emt 0:00:00]} 7. O-O {[%emt 0:00:25]} cxd4 {[%emt 0:01:34]} 8. exd4 {[%emt 0:00:30]} Nc6 {[%emt 0:00:10]} 9. Ne5 {[%emt 0:00:57]} Nxe5 {[%emt 0:01:13]} 10. dxe5 {[%emt 0:00:36]} Nd7 {[%emt 0:00:04]} 11. Nd2 {[%emt 0:01:49]} Nc5 {[%emt 0:02:37]} 12. Be2 {[%emt 0:01:13]} b6 {[%emt 0:08:13]} 13. c4 {[%emt 0:02:14]} Ba6 {[%emt 0:08:28]} 14. b4 {[%emt 0:08:56]} Ne4 {[%emt 0:05:08]} 15. b5 {[%emt 0:05:06]} Bb7 {[%emt 0:00:06]} 16. cxd5 {[%emt 0:00:44]} Nxd2 {[%emt 0:03:28]} 17. Qxd2 {[%emt 0:00:44]} Qxd5 {[%emt 0:00:14]} 18. Qxd5 {[%emt 0:01:03]} Bxd5 {[%emt 0:00:20]} 19. a4 {[%emt 0:00:34]} Rac8 {[%emt 0:06:31]} 20. Ba3 {[%emt 0:00:51]} Bc5 {[%emt 0:02:57]} 21. Bxc5 {[%emt 0:03:56]} Rxc5 {[%emt 0:00:10]} 22. f4 {[%emt 0:00:33]} Rfc8 {[%emt 0:08:09]} 23. Rad1 {[%emt 0:07:09]} Kf8 {[%emt 0:00:52]} 24. g3 {[%emt 0:04:52]} Rc3 {[%emt 0:05:15]} 25. f5 {[%emt 0:18:39]} Re3 {[%emt 0:09:10]} 26. fxe6 {[%emt 0:02:55]} Bxe6 {[%emt 0:00:01]} 27. Bd3 {[%emt 0:02:39]} Ke7 {[%emt 0:09:10]} 28. Rfe1 {[%emt 0:01:09]} Rxe1+ {[%emt 0:00:00]} 29. Rxe1 {[%emt 0:00:16]} Rc3 {[%emt 0:01:49]} 30. Bb1 {[%emt 0:07:24]} Rc4 {[%emt 0:01:27]} 31. Bd3 {[%emt 0:03:08]} Rd4 {[%emt 0:05:39]} 32. Bc2 {[%emt 0:01:19]} Rd2 {[%emt 0:00:31]} 33. Rc1 {[%emt 0:02:04]} Bd5 {[%emt 0:03:31]} 34. Bd1 {[%emt 0:01:03]} Ke6 {[%emt 0:04:18]} 35. Bg4+ {[%emt 0:00:57]} Kxe5 {[%emt 0:00:11]} 36. Rc7 {[%emt 0:00:29]} Rg2+ {[%emt 0:03:18]} 37. Kf1 {[%emt 0:00:08]} Rxh2 {[%emt 0:00:00]} 38. Rxa7 {[%emt 0:00:12]} Kd4 {[%emt 0:02:19]} 39. Bd7 {[%emt 0:02:50]} Ke3 {[%emt 0:01:12]} 40. Bc6 {[%emt 0:01:16]} Rh1# {[%emt 0:08:53]} 0-1

[Event "17th Memorial Lezcano Montalvo 2025"]
[Site "Gran Canaria"]
[Date "2025.04.18"]
[Round "7.46"]
[White "Castro Miguelez, Jose"]
[Black "Rodriguez Trujillo, Cristian"]
[Result "1-0"]
[Annotator "NA"]
[ECO "C88"]
[WhiteElo "1846"]
[BlackElo "1562"]
[PlyCount "53"]
[EventDate "2025.04.13"]
[EventType "swiss"]
[EventCountry "ESP"]
[SourceTitle "playchess.com"]
[Source "ChessBase"]
[SourceQuality "1"]
[TimeControl "5400+30"]

1. e4 {[%emt 0:00:02]} e5 {[%emt 0:00:11]} 2. Nf3 {[%emt 0:00:04]} Nc6 {[%emt 0:00:08]} 3. Bb5 {[%emt 0:00:04]} a6 {[%emt 0:00:20]} 4. Ba4 {[%emt 0:00:04]} Nf6 {[%emt 0:00:17]} 5. O-O {[%emt 0:00:07]} Be7 {[%emt 0:00:24]} 6. Re1 {[%emt 0:00:08]} b5 {[%emt 0:00:04]} 7. Bb3 {[%emt 0:00:05]} O-O {[%emt 0:00:45]} 8. a4 {[%emt 0:00:36]} Bb7 {[%emt 0:03:40]} 9. d3 {[%emt 0:00:21]} Na5 {[%emt 0:00:45]} 10. Ba2 {[%emt 0:02:53]} c5 {[%emt 0:00:31]} 11. Nxe5 {[%emt 0:01:54]} Qc7 {[%emt 0:04:42]} 12. Nf3 {[%emt 0:06:51]} Nc6 {[%emt 0:04:28]} 13. Nc3 {[%emt 0:03:04]} Nd4 {[%emt 0:16:09]} 14. Nxd4 {[%emt 0:12:48]} cxd4 {[%emt 0:01:00]} 15. Nd5 {[%emt 0:01:52]} Nxd5 {[%emt 0:00:30]} 16. exd5 {[%emt 0:00:31]} Bd6 {[%emt 0:00:10]} 17. h3 {[%emt 0:01:14]} Rfe8 {[%emt 0:02:02]} 18. Bd2 {[%emt 0:07:14]} Rxe1+ {[%emt 0:05:03]} 19. Bxe1 {[%emt 0:00:07]} Re8 {[%emt 0:00:07]} 20. Bb3 {[%emt 0:05:56]} b4 {[%emt 0:09:52]} 21. a5 {[%emt 0:01:27]} Qc5 {[%emt 0:07:25]} 22. Ra4 {[%emt 0:04:02]} Bxd5 {[%emt 0:02:35]} 23. Bxb4 {[%emt 0:01:27]} Qc6 {[%emt 0:00:29]} 24. Bxd5 {[%emt 0:00:35]} Qxa4 {[%emt 0:01:26]} 25. Bxd6 {[%emt 0:00:06]} Qxa5 {[%emt 0:00:16]} 26. Qf3 {[%emt 0:00:48]} Re7 {[%emt 0:06:19]} 27. Bxf7+ {[%emt 0:00:36]} 1-0